Cogmind - Beta 10 @@@ ROGUE MODE // 2020.09.21 @ 15:27:52 Player: Tmvn Result: Destroyed by D-53 Grenadier with Mini Grenade Launcher Performance ------------- Evolutions (1) 500 Regions Visited (3) 600 Robots Destroyed (75) 375 Value Destroyed (1759) 1759 Prototype IDs (0) 0 Alien Tech Used (0) 0 Bonus (8) 8 TOTAL SCORE: 3242 Bonus ------- High Alert Combat Kills 8 Cogmind --------- Core Integrity 0/400 Matter 286/300 Energy 140/140 System Corruption 0% Temperature Cool (0) Movement Core (400) Ox7 Location -9/Mines Parts ------- > --- POWER (1) -------- Light Deuterium Engine > --- PROPULSION (3) --- (None) > --- UTILITY (3) ------ Large Storage Unit Hacking Suite > --- WEAPON (2) ------- Heavy Assault Rifle > --- INVENTORY (10) --- Light Treads Light Treads Medium Battery (200) Structural Scanner Seismic Analyzer Medium Armor Plating Hacking Suite Thief Drone Bay Peak State ------------ > --- POWER ------------ Light Deuterium Engine > --- PROPULSION ------- Light Treads Light Treads Improved Treads > --- UTILITY ---------- Large Storage Unit Improved Terrain Scanner Hacking Suite > --- WEAPON ----------- Light Assault Rifle Heavy Assault Rifle > --- INVENTORY -------- Light Deuterium Engine Medium Battery Structural Scanner Seismic Analyzer Medium Armor Plating Medium Armor Plating Hacking Suite Thief Drone Bay [Rating: 18] Favorites ----------- Power Light Ion Engine Engine Light Ion Engine Propulsion Light Treads Treads Light Treads Leg Aluminum Leg Wheel Armored Wheel Flight Unit Flight Unit Utility Large Storage Unit Device Structural Scanner Storage Large Storage Unit Processor Visual Processing Unit Hackware Hacking Suite Protection Light Armor Plating Weapon Light Assault Rifle Energy Gun Medium Laser Energy Cannon Light EM Pulse Cannon Ballistic Gun Light Assault Rifle Ballistic Cannon Light Cannon Launcher Grenade Launcher Build | -11 -10 -9 -9 ------- Run | Scr Mat Mat Min Slots Evolved 2 | . . 2 . Power . | . . . . Propulsion 1 | . . 1 . Utility 1 | . . 1 . Weapon . | . . . . Parts Attached 74 | . 20 48 6 Power 10 | . 2 6 2 Engine 10 | . 2 6 2 Core . | . . . . Reactor . | . . . . Propulsion 22 | . 6 13 3 Treads 16 | . 2 11 3 Leg 4 | . 4 . . Wheel 1 | . . 1 . Hover . | . . . . Flight 1 | . . 1 . Utility 15 | . 2 12 1 Device 7 | . 1 6 . Storage 2 | . 1 1 . Processor 2 | . . 2 . Hackware 1 | . . 1 . Protection 3 | . . 2 1 Artifact . | . . . . Weapon 27 | . 10 17 . Energy Gun 9 | . 6 3 . Energy Cannon 2 | . . 2 . Ballistic Gun 11 | . 1 10 . Ballistic Cannon 4 | . 2 2 . Launcher 1 | . 1 . . Special Weapon . | . . . . Impact Weapon . | . . . . Slashing Weapon . | . . . . Piercing Weapon . | . . . . Special Melee Weapon . | . . . . Unidentified Prototypes . | . . . . Parts Lost 10 | . 1 2 7 Power 3 | . 1 . 2 Propulsion 3 | . . . 3 Utility 2 | . . 1 1 Weapon 2 | . . 1 1 Highest Loss Streak 6 | . 1 1 6 Average Slot Usage (%) 98 | . 99 97 99 Engine 11 | . 13 11 11 Treads 24 | . 10 30 32 Leg 5 | . 17 . . Device 10 | . 13 9 8 Storage 11 | . 14 11 11 Processor 3 | . . 5 . Hackware 3 | . . 3 11 Protection 2 | . . 3 2 Energy Gun 6 | . 10 5 . Ballistic Gun 13 | . 8 13 21 Ballistic Cannon 2 | . 6 . . Naked Turns . | . . . . Heaviest Build 38 | 9 24 38 32 Greatest Support 63 | 20 40 63 63 Greatest Overweight (x) 10 | . 4 10 . Average Overweight (x) . | . . . . Largest Inventory Capacity 10 | 6 10 10 10 Average Capacity 9 | 6 7 10 10 Most Carried 10 | 6 7 10 10 Average Carried 8 | 6 5 9 7 Final Capacity 10 | 6 10 10 10 Final Carried 9 | 6 7 9 8 Class Distribution -------------------- 75% | Mutant 24% | Scavenger-Mutant Dominant Class ---------------- Mutant | -10/Materials Mutant | -9/Materials Mutant | -9/Mines Resources | -11 -10 -9 -9 ----------- Run | Scr Mat Mat Min Matter Collected 1503 | 200 450 748 105 Remotely . | . . . . Salvage Created 2071 | . 697 1188 186 Parts 158 | . 47 103 8 Haulers Intercepted . | . . . . Recyclers Shooed 3 | . 1 2 . Parts Field Recycled . | . . . . Retrieved Matter . | . . . . Parts Self-Destructed . | . . . . Prevented . | . . . . Kills | -11 -10 -9 -9 ------- Run | Scr Mat Mat Min Combat Hostiles Destroyed 63 | . 21 35 7 Guns 40 | . 6 27 7 Cannons 11 | . 5 6 . AOE 11 | . 10 1 . Classes Destroyed 9 | . 5 2 2 Worker 4 | . 1 2 1 Builder 2 | . 2 . . Recycler 1 | . . 1 . Watcher 5 | . 2 3 . Swarmer 28 | . 3 21 4 Grunt 24 | . 18 5 1 Brawler 1 | . . . 1 Sentry 9 | . . 9 . Demolisher 1 | . . . 1 Best Kill Streak 6 | . 6 5 4 Combat Bots Only 5 | . 5 5 4 Max Kills in Single Turn 3 | . 3 2 1 Gunslinging 1 | . . 1 . Exploded 2 | . 2 1 . Melee . | . . . . Uniques/NPCs Destroyed . | . . . . Combat | -11 -10 -9 -9 -------- Run | Scr Mat Mat Min Damage Taken 3499 | . 691 1627 1181 Core 567 | . 143 197 227 Absorbed by Shields . | . . . . Core Remaining (%) 71 | 100 42 . . Volleys Fired 166 | . 42 99 25 Largest 2 | . 2 2 2 Hottest 96 | . 90 96 43 Shots Fired 309 | . 78 189 42 Gun 227 | . 36 149 42 Cannon 71 | . 31 40 . Launcher 11 | . 11 . . Special . | . . . . Kinetic 209 | . 45 122 42 Thermal 33 | . 3 30 . Explosive 11 | . 11 . . Electromagnetic 56 | . 19 37 . Robot Hit Streak 18 | . 7 18 15 Robot Miss Streak 7 | . 7 4 2 Penetration Max . | . . . . Secondary Targets 6 | . . 5 1 Max Gunslinging Chain 1 | . . 1 1 Shots Hit Robots 200 | . 42 125 33 Core Hits 101 | . 35 54 12 Critical Hits 2 | . . 2 . Critical Kills 1 | . . 1 . Critical Parts Destroyed 1 | . . 1 . Melee Attacks . | . . . . Impact . | . . . . Slashing . | . . . . Piercing . | . . . . Sneak Attacks . | . . . . Combat Hostiles . | . . . . Follow-up Attacks . | . . . . Damage Inflicted 3667 | . 1361 1863 443 Guns 1856 | . 326 1112 418 Cannons 921 | . 288 633 . Explosions 817 | . 744 73 . Melee . | . . . . Ramming 73 | . 3 45 25 Kinetic 1650 | . 359 873 418 Thermal 467 | . 11 456 . Explosive 744 | . 744 . . Electromagnetic 733 | . 244 489 . Impact . | . . . . Slashing . | . . . . Piercing . | . . . . Highest Corruption . | . . . . Average Corruption . | . . . . Corruption Purged . | . . . . Overload Shots . | . . . . Overflow Damage 18 | . 2 16 . Projectiles 18 | . 2 16 . Explosions . | . . . . Melee . | . . . . Knockbacks 7 | . 6 . 1 Impact 1 | . . . 1 Kinetic 6 | . 6 . . Secondary . | . . . . Self-Inflicted Damage 44 | . 18 26 . Shots 2 | . 1 1 . Rammed 20 | . 1 15 4 Targets Rammed 23 | . 2 16 5 Kicked . | . . . . Crushed 3 | . 1 1 1 Highest Temperature 263 | . 115 263 9 Average Temperature 55 | . 32 66 4 Received Heat Transfer 639 | . 297 300 42 Effects 3 | . . 3 . Energy Bleed 1 | . . 1 . Interference 2 | . . 2 . Siege Activations . | . . . . Robots Corrupted 1 | . . 1 . Combat Hostiles 1 | . . 1 . Parts Fried 1 | . . 1 . Impact Corruptions . | . . . . Robots Melted . | . . . . Combat Hostiles . | . . . . Parts Melted 2 | . . 2 . Heat Transferred 1013 | . 25 988 . Parts Sabotaged . | . . . . Parts Stolen . | . . . . Parts Stripped . | . . . . Power Chain Reactions 1 | . . 1 . Missiles Intercepted . | . . . . Alert | -11 -10 -9 -9 ------- Run | Scr Mat Mat Min Peak Influence 480 | . 205 480 270 Initial 185 | . . 15 185 Average 181 | . 85 236 177 Maximum Alert Level 2 | . 1 2 1 Low Security (%) 64 | 100 97 49 51 Level 1 27 | . 2 36 48 Level 2 7 | . . 13 . Level 3 . | . . . . Level 4 . | . . . . Level 5 . | . . . . High Security . | . . . . Max Security . | . . . . Squads Dispatched 11 | . 6 5 . Investigation 4 | . 4 . . Extermination . | . . . . Reinforcement 7 | . 2 5 . Assault . | . . . . Garrison . | . . . . Intercept . | . . . . Construction Impeded . | . . . . Haulers Reinforced . | . . . . Stealth | -11 -10 -9 -9 --------- Run | Scr Mat Mat Min Distress Signals 9 | . 4 4 1 Communications Jammed . | . . . . Distress Signals . | . . . . Times Spotted 126 | . 37 72 17 Peak Tracking Total 8 | . 5 6 8 Tactical Retreats 6 | . 3 2 1 Traps | -11 -10 -9 -9 ------- Run | Scr Mat Mat Min Traps Triggered 6 | . 4 2 . Indirectly . | . . . . Trap Hack Attempts . | . . . . Triggered . | . . . . Disarmed . | . . . . Reprogrammed . | . . . . Reused . | . . . . Traps Extracted . | . . . . Installed . | . . . . Triggered 1 | . 1 . . Machines | -11 -10 -9 -9 ---------- Run | Scr Mat Mat Min Machines Disabled 3 | . 1 2 . Max in Single Turn 1 | . 1 1 . Machines Sabotaged . | . . . . Garrisons Compromised . | . . . . Overloaded Fab Kills . | . . . . Fab Network Shutdowns . | . . . . Hacking | -11 -10 -9 -9 --------- Run | Scr Mat Mat Min Machines Accessed 9 | . 3 5 1 Terminals 5 | . 3 2 . Fabricators . | . . . . Repair Stations 1 | . . 1 . Recycling Units 1 | . . 1 . Scanalyzers 1 | . . 1 . Garrison Access . | . . . . Total Hacks 21 | . 7 13 1 Successful 19 | . 5 13 1 Failed 2 | . 2 . . Catastrophic . | . . . . Database Lockouts . | . . . . Manual . | . . . . Terminals 11 | . 7 4 . Fabricators . | . . . . Repair Stations 4 | . . 4 . Recycling Units 2 | . . 2 . Scanalyzers 3 | . . 3 . Garrison Access . | . . . . Terminal Hacks 10 | . 5 4 1 Record 7 | . 4 3 . Open Door 1 | . . . 1 Alert Level 1 | . 1 . . Dispatch Records 1 | . . 1 . Fabricator Hacks . | . . . . Repair Station Hacks 4 | . . 4 . Scan Component 2 | . . 2 . Repair 2 | . . 2 . Recycling Unit Hacks 2 | . . 2 . Recycle Component 1 | . . 1 . Process 1 | . . 1 . Scanalyzer 3 | . . 3 . Insert Component 1 | . . 1 . Analyze 2 | . . 2 . Garrison Access Hacks . | . . . . Unauthorized Hacks . | . . . . Terminals . | . . . . Fabricators . | . . . . Repair Stations . | . . . . Recycling Units . | . . . . Scanalyzers . | . . . . Garrison Access . | . . . . Data Cores Recovered . | . . . . Used . | . . . . Hacking Detections 4 | . 1 3 . Full Trace Events 3 | . 1 2 . Feedback Events . | . . . . Feedback Blocked . | . . . . Robot Schematics Acquired . | . . . . Robots Built . | . . . . Matter . | . . . . Time . | . . . . Total Robot Build Rating . | . . . . Part Schematics Acquired 1 | . . 1 . Parts Built . | . . . . Matter . | . . . . Time . | . . . . Total Part Build Rating . | . . . . Parts Repaired 2 | . . 2 . Time 64 | . . 64 . Parts Recycled 1 | . . 1 . Recycled Matter 179 | . . 179 . Retrieved Matter . | . . . . Retrieved Components . | . . . . Parts Scanalyzed 1 | . . 1 . Part Schematics Acquired 1 | . . 1 . Parts Damaged . | . . . . Bothacking | -11 -10 -9 -9 ------------ Run | Scr Mat Mat Min Used RIF Installer . | . . . . Robots Hacked . | . . . . Non-combat . | . . . . Combat . | . . . . Robot Hacks Applied . | . . . . Relay Couplers Released . | . . . . Robots Rewired . | . . . . Allies Hacked . | . . . . Hacks Repelled . | . . . . Allies | -11 -10 -9 -9 -------- Run | Scr Mat Mat Min Total Allies . | . . . . Largest Group . | . . . . Highest-Rated Group . | . . . . Highest-Rated Ally . | . . . . Total Orders . | . . . . Ally Attacks . | . . . . Total Damage . | . . . . Kills . | . . . . Allies Corrupted . | . . . . Allies Melted . | . . . . Intel | -11 -10 -9 -9 ------- Run | Scr Mat Mat Min Robot Analysis Total . | . . . . Derelict Logs Recovered 1 | . . . 1 Drone Launches . | . . . . Drone Recoveries . | . . . . Exploration | -11 -10 -9 -9 ------------- Run | Scr Mat Mat Min Turns Passed 6744 | 6 2135 3794 809 Spaces Moved 3895 | 6 1390 2044 455 Core 4 | . 2 2 . Treads 2925 | . 473 1997 455 Legs 921 | 6 915 . . Wheels 41 | . . 41 . Hover . | . . . . Flight 4 | . . 4 . Fastest Speed 110 | 120 120 110 160 Average Speed 150 | 120 133 160 160 Slowest Speed 550 | 120 250 550 160 Overloaded Moves . | . . . . Propulsion Burnouts . | . . . . Robots Hopped . | . . . . Cave-ins Triggered . | . . . . Exploration Rate (%) 66 | 2 100 93 71 Regions Visited 3 Branch Regions 1 Pre-discovered Areas . | . . . . Known Exits Taken . | . . . . Unknown Exits Taken 3 | 1 1 1 . Scrap Searched . | . . . . Spaces Dug . | . . . . Terrain Destroyed 84 | . 80 4 . Melee . | . . . . Projectile . | . . . . AOE 84 | . 80 4 . Terrain Rammed . | . . . . Walls Destroyed . | . . . . Machines Disabled . | . . . . Actions | -11 -10 -9 -9 --------- Run | Scr Mat Mat Min Total 4489 | 5 1594 2395 495 Wait 212 | . 104 108 . Move 3892 | 5 1389 2043 455 Hop . | . . . . Pick Up 34 | . 9 24 1 Fast Attach 31 | . 12 19 . Attach 18 | . 2 12 4 Detach 15 | . 4 10 1 Swap 25 | . 6 17 2 Drop 73 | . 24 47 2 Fire 166 | . 42 99 25 Melee . | . . . . Ram . | . . . . Kick . | . . . . Crush 23 | . 2 16 5 Escape Stasis . | . . . . Rewire . | . . . . Trap . | . . . . Miscellaneous . | . . . . Route ------- -11/Scrapyard -10/Materials (discovered 5 exits: *Mat x3 / [*Min x2]) -9/Materials (discovered 5 exits: [*Mat x3] / *Min x2) -9/Mines (discovered 1 exit: [*Mat]) History --------- Turn | Location | Event 1 | -11/Scrapyard | Discovered new exit (range 3) 7 | -11/Scrapyard | Entered Materials 317 | -10/Materials | Build established: Mutant 347 | -10/Materials | Discovered new exit (range 16) 927 | -10/Materials | Discovered new exit (range 16) 1175 | -10/Materials | Discovered new exit (range 14) 1198 | -10/Materials | Discovered new exit (range 9) 1322 | -10/Materials | Core integrity fell below 50% 1495 | -10/Materials | Discovered new exit (range 16) 2142 | -10/Materials | Entered another Materials area 2142 | -9/Materials | Evolved 2 slots: Propulsion x1, Utility x1 2900 | -9/Materials | Discovered new exit (range 3) 2945 | -9/Materials | Build established: Scavenger-Mutant 3164 | -9/Materials | Discovered new exit (range 16) 3388 | -9/Materials | Discovered new exit (range 8) 3698 | -9/Materials | Discovered new exit (range 13) 4618 | -9/Materials | Build established: Mutant 4697 | -9/Materials | Discovered new exit (range 15) 5608 | -9/Materials | Repaired Hvy. Assault Rifle 5643 | -9/Materials | Repaired Imp. Treads 5936 | -9/Materials | Entered Mines 5938 | -9/Mines | Met a Derelict bent on vengeance 5938 | -9/Mines | Core integrity fell below 50% 6135 | -9/Mines | Learned Materials terminal intel 6275 | -9/Mines | Discovered new exit (range 7) 6356 | -9/Mines | Found the Drone Emporium 6379 | -9/Mines | Found Prototype Device 6687 | -9/Mines | Assembled infested the area 6692 | -9/Mines | Assisted by a Guerilla fighting off Assembled 6738 | -9/Mines | Core integrity fell below 20% 6745 | -9/Mines | Destroyed by D-53 Grenadier with Mini Grenade Launcher Last Messages --------------- as-24172 destroyed. as-63902 destroyed. as-22290 destroyed. as-92569 destroyed. The unstable cave ceiling collapses. Critical hit. Lgt. Deuterium Engine destroyed. Lgt. Assault Rifle destroyed. The unstable cave ceiling collapses. Imp. Treads destroyed. Matter Pump disabled. as-10777 destroyed. as-32256 destroyed. Med. Armor Plating destroyed. The unstable cave ceiling collapses. Lgt. Treads destroyed. D-53 Grenadier destroyed. U-05 Engineer lays Concrete. The unstable cave ceiling collapses. U-05 Engineer lays Concrete. Map ----- +----------------------------------------------------+ | ???????????????????????????#??????????## ##?#?# | | ??????????????????????????????#??#????# ##??# | | ???????????????????????????#??????????# ##?# | | ??????????????????????????##?????#??###### #?# | | ???????????????????????????????????##""## #?# | | ???????????????????????????????????#" # ### | | ???????????????????????????#???????#" ## | | ???????????????????????????????#???#" | | ?????????? %?????????????????#????##" #X ### | | ????????? ??????????????????????##""## #### | | ?????????# ???????????????????##??#### ## | | ?????????# ??????????????????????????## ## # | | ?????????# ??????????????????????##???## ##%# | | ????????## ???????????????????#??#?#???## ### # | | ??????### #??????????????????????????#?###### # | | ?????## ??????????#??????????#????#??#??## # | | ?????# ?????????????????????##?????#???## # | | ?????# ##?????????????????#?????????#?### # | | ?????? #??????????????????##????#?##?#?# # | | ???????? #?#?#########???#??????????###### # | | ??????????# %=### # ##????#?#??????# # | | ????????????# ## ##????#??#??#?# ##### | | ????????????# ######????#### #??# | | ???????###### ## # ##??????# #??# | | ???????# ## a #?#???## ##?## | | ???????# ## @ """ ??##??## #???# | | ???????# ####### a "" #???????# #???? | | ??????## ##????# """ #?#??##?# #???# | | ##???## #????#### #??????# #?## | | #???# #???????#### #??????# ### | | ##### ##??????????### d ##?#??### ## | | %% ##?????????????# %% #??##??# | | % ##??????????????# ##??????# | | ### #???????????????## ## #???#?## # | | ##?# ##?????????????#?# r # ####??#?# # | | ??## #####???????????# % u ## ##??## | | ### #????#??????# ### #### | | #??????????# ###?# ## | | #### #??????????# #????# ##### | | ####???# ##???#??????# #???## ##???? | | ###???????####??????#????# #?### % #????? | | ???????????????????????#?# ### ! ###???? | | ???????????????????#?????# ## ! #?????? | | ????????????????#####?#### ## ##?????? | | ???????????????## ### # ## ###? ????? | | ################ # ## ### #?????? ?? | | ### #?# ##???????? | | ### #?# ### ?????? | | # ############### ## #?# ? ? ? ?#? | | # #?????????????## ## ### ##??????## | +----------------------------------------------------+ Best States ------------- Heat Dissipation 28 Energy Generation 14 Energy Capacity 265 Matter Stores 300 Matter Capacity 300 Sight Range 18 Robot Scan Range 13 Terrain Scan Range 16 Terrain Scan Density 10 Armor Coverage 225 Evasion (%) 40 Recoil Reduction 3 Offensive Hacking 10 Item Schematics ----------------- Beam Rifle | -9/Materials | Scanalyzed Robot Schematics ------------------ None Fabricated ------------ Nothing Alien Tech Used ----------------- None Achievements -------------- None Challenges ------------ None Game ------ Seed SuperchargedIntegrityTorch Manual? 0 Play Time 01:37:39 Cumulative 12.4 hours Start 2020.09.21 @ 13:38:29 End 2020.09.21 @ 15:27:52 Sessions 1 Manual Loads 0 Difficulty Rogue Special Mode None Game No. 27 Rogue 27 Adventurer 0 Explorer 0 Win Type - Total 0 Types 0/0/0/0/0/0/0/0/0 Lore% 17 Gallery% 20 Achievement% 21 Wizard Run 0 Options --------- ASCII 1 Keyboard 1 Movement Arrows Keybinds 0 Fullscreen 2 Font 16/SmallcapsGlow Map View 90x56 Tactical HUD 0 Map Filters BRIGHTNESS(90)|SATURATION(66) Filters BRIGHTNESS(90)|SATURATION(66) Steam X RUN: 7590f0d2-f60e-4e96-9635-dd6372e41653